[Event "Titled Tuesday Blitz January 18 2022"]
[White "Sawlin, Leonid"]
[Black "Sanal, Vahap"]
[WhiteFideId "4689542"]
[BlackFideId "6300545"]
[WhiteElo "2610"]
[BlackElo "2932"]
[Result "0-1"]
[Round "02"]
[TimeControl "180+1"]
[Date "2022.01.18"]
[WhiteClock "0:01:56"]
[BlackClock "0:02:17"]

1. e3 {[%clk 0:03:00]}  Nf6 {[%clk 0:02:54]} 2. c4 {[%clk 0:02:59]}  g6 {[%clk 0:02:55]} 3. Nc3 {[%clk 0:02:59]}  Bg7 {[%clk 0:02:55]} 4. Nge2 {[%clk 0:03:00]}  O-O {[%clk 0:02:56]} 5. b3 {[%clk 0:03:01]}  d6 {[%clk 0:02:56]} 6. Bb2 {[%clk 0:03:01]}  e5 {[%clk 0:02:56]} 7. g3 {[%clk 0:03:01]}  Nc6 {[%clk 0:02:56]} 8. Bg2 {[%clk 0:03:02]}  Be6 {[%clk 0:02:54]} 9. O-O {[%clk 0:03:02]}  Qd7 {[%clk 0:02:54]} 10. d4 {[%clk 0:03:01]}  exd4 {[%clk 0:02:53]} 11. Nxd4 {[%clk 0:03:01]}  Bh3 {[%clk 0:02:50]} 12. Nxc6 {[%clk 0:02:57]}  bxc6 {[%clk 0:02:49]} 13. Bxh3 {[%clk 0:02:54]}  Qxh3 {[%clk 0:02:49]} 14. Qf3 {[%clk 0:02:55]}  Ng4 {[%clk 0:02:39]} 15. Qg2 {[%clk 0:02:49]}  Qxg2+ {[%clk 0:02:37]} 16. Kxg2 {[%clk 0:02:50]}  Rab8 {[%clk 0:02:38]} 17. Rad1 {[%clk 0:02:48]}  Ne5 {[%clk 0:02:38]} 18. Rfe1 {[%clk 0:02:41]}  Nxc4 {[%clk 0:02:37]} 19. Ba1 {[%clk 0:02:40]}  Ne5 {[%clk 0:02:36]} 20. Na4 {[%clk 0:02:39]}  Rfe8 {[%clk 0:02:33]} 21. Re2 {[%clk 0:02:36]}  Nd7 {[%clk 0:02:32]} 22. Bxg7 {[%clk 0:02:34]}  Kxg7 {[%clk 0:02:33]} 23. Rc2 {[%clk 0:02:34]}  c5 {[%clk 0:02:31]} 24. Nc3 {[%clk 0:02:34]}  Nf6 {[%clk 0:02:28]} 25. Nd5 {[%clk 0:02:27]}  Nxd5 {[%clk 0:02:26]} 26. Rxd5 {[%clk 0:02:27]}  a5 {[%clk 0:02:27]} 27. Rc4 {[%clk 0:02:27]}  Rb4 {[%clk 0:02:27]} 28. Rxb4 {[%clk 0:02:23]}  axb4 {[%clk 0:02:28]} 29. Rd2 {[%clk 0:02:22]}  Kf6 {[%clk 0:02:27]} 30. Kf3 {[%clk 0:02:19]}  Ke6 {[%clk 0:02:27]} 31. Ke4 {[%clk 0:02:19]}  f5+ {[%clk 0:02:27]} 32. Kd3 {[%clk 0:02:19]}  d5 {[%clk 0:02:28]} 33. Rc2 {[%clk 0:02:18]}  Kd6 {[%clk 0:02:28]} 34. h4 {[%clk 0:02:17]}  Ra8 {[%clk 0:02:28]} 35. Rd2 {[%clk 0:02:13]}  Ra3 {[%clk 0:02:26]} 36. Ke2 {[%clk 0:02:09]}  Ke5 {[%clk 0:02:26]} 37. Rc2 {[%clk 0:02:09]}  c6 {[%clk 0:02:23]} 38. Kd2 {[%clk 0:01:58]}  Kd6 {[%clk 0:02:23]} 39. Kc1 {[%clk 0:01:58]}  Ra8 {[%clk 0:02:19]} 40. Kb2 {[%clk 0:01:58]}  d4 {[%clk 0:02:18]} 41. exd4 {[%clk 0:01:57]}  cxd4 {[%clk 0:02:19]} 42. Rc4 {[%clk 0:01:58]}  c5 {[%clk 0:02:20]} 43. Rc2 {[%clk 0:01:57]}  Re8 {[%clk 0:02:18]} 44. a3 {[%clk 0:01:56]}  bxa3+ {[%clk 0:02:18]} 45. Kxa3 {[%clk 0:01:56]}  Kd5 {[%clk 0:02:17]} 46. b4 {[%clk 0:01:56]}  c4 {[%clk 0:02:17]} 0-1


[Site "https://www.chess.com"]

[Event "Titled Tuesday Blitz January 18 2022"]
[White "Shirazi, Kamran"]
[Black "Raja Rithvik R"]
[WhiteFideId "2000733"]
[BlackFideId "35007394"]
[WhiteElo "2317"]
[BlackElo "2255"]
[Result "1-0"]
[Round "02"]
[TimeControl "180+1"]
[Date "2022.01.18"]
[WhiteClock "0:01:09"]
[BlackClock "0:00:33"]

1. e3 {[%clk 0:03:00]}  d5 {[%clk 0:02:53]} 2. Ne2 {[%clk 0:03:01]}  Nf6 {[%clk 0:02:54]} 3. d4 {[%clk 0:03:00]}  g6 {[%clk 0:02:46]} 4. c4 {[%clk 0:03:00]}  dxc4 {[%clk 0:02:42]} 5. Nf4 {[%clk 0:02:58]}  c5 {[%clk 0:02:37]} 6. Bxc4 {[%clk 0:02:57]}  cxd4 {[%clk 0:02:36]} 7. exd4 {[%clk 0:02:56]}  Bg7 {[%clk 0:02:37]} 8. Nc3 {[%clk 0:02:56]}  O-O {[%clk 0:02:37]} 9. h3 {[%clk 0:02:49]}  Nc6 {[%clk 0:02:33]} 10. Be3 {[%clk 0:02:48]}  Bf5 {[%clk 0:02:29]} 11. O-O {[%clk 0:02:36]}  Rc8 {[%clk 0:02:28]} 12. a3 {[%clk 0:02:30]}  Na5 {[%clk 0:02:15]} 13. Ba2 {[%clk 0:02:29]}  Nc4 {[%clk 0:02:16]} 14. Qe2 {[%clk 0:02:27]}  Nxe3 {[%clk 0:02:12]} 15. fxe3 {[%clk 0:02:26]}  Ne4 {[%clk 0:02:09]} 16. Nxe4 {[%clk 0:02:21]}  Bxe4 {[%clk 0:02:10]} 17. Rac1 {[%clk 0:02:19]}  e6 {[%clk 0:01:59]} 18. Nxe6 {[%clk 0:02:18]}  Rxc1 {[%clk 0:01:32]} 19. Nxd8 {[%clk 0:02:17]}  Rc2 {[%clk 0:01:31]} 20. Qxc2 {[%clk 0:01:59]}  Bxc2 {[%clk 0:01:32]} 21. Nxf7 {[%clk 0:01:59]}  Bd3 {[%clk 0:01:20]} 22. Nd8+ {[%clk 0:01:54]}  Kh8 {[%clk 0:01:18]} 23. Rxf8+ {[%clk 0:01:54]}  Bxf8 {[%clk 0:01:19]} 24. Nxb7 {[%clk 0:01:54]}  Bf5 {[%clk 0:01:10]} 25. b4 {[%clk 0:01:47]}  Be7 {[%clk 0:01:02]} 26. Kf2 {[%clk 0:01:44]}  Bh4+ {[%clk 0:01:02]} 27. Kf1 {[%clk 0:01:39]}  Bd3+ {[%clk 0:00:59]} 28. Kg1 {[%clk 0:01:38]}  Be1 {[%clk 0:01:00]} 29. Nc5 {[%clk 0:01:36]}  Bc2 {[%clk 0:00:49]} 30. Bb3 {[%clk 0:01:36]}  Bb1 {[%clk 0:00:48]} 31. b5 {[%clk 0:01:31]}  Kg7 {[%clk 0:00:43]} 32. a4 {[%clk 0:01:28]}  Kf6 {[%clk 0:00:41]} 33. Bc4 {[%clk 0:01:23]}  Ke7 {[%clk 0:00:38]} 34. Nb3 {[%clk 0:01:21]}  Ba2 {[%clk 0:00:35]} 35. Kf1 {[%clk 0:01:12]}  Bb4 {[%clk 0:00:33]} 36. Ke2 {[%clk 0:01:11]}  Kd6 {[%clk 0:00:33]} 37. e4 {[%clk 0:01:09]} 1-0


[Site "https://www.chess.com"]

[Event "Titled Tuesday Blitz January 18 2022"]
[White "Shkapenko, Pavel"]
[Black "Gvanceladze, Anna"]
[WhiteFideId "4151933"]
[BlackFideId "4113721"]
[WhiteElo "2386"]
[BlackElo "2048"]
[Result "1-0"]
[Round "02"]
[TimeControl "180+1"]
[Date "2022.01.18"]
[WhiteClock "0:00:19"]
[BlackClock "0:00:23"]

1. e4 {[%clk 0:03:00]}  c5 {[%clk 0:02:59]} 2. c3 {[%clk 0:03:00]}  d5 {[%clk 0:02:59]} 3. exd5 {[%clk 0:03:00]}  Qxd5 {[%clk 0:03:00]} 4. d4 {[%clk 0:02:57]}  Nf6 {[%clk 0:02:59]} 5. Nf3 {[%clk 0:02:57]}  e6 {[%clk 0:02:59]} 6. Be2 {[%clk 0:02:57]}  Be7 {[%clk 0:02:59]} 7. O-O {[%clk 0:02:57]}  O-O {[%clk 0:02:59]} 8. c4 {[%clk 0:02:57]}  Qd6 {[%clk 0:02:59]} 9. dxc5 {[%clk 0:02:57]}  Qxc5 {[%clk 0:02:58]} 10. Be3 {[%clk 0:02:35]}  Qa5 {[%clk 0:02:53]} 11. Nc3 {[%clk 0:02:31]}  Bd7 {[%clk 0:02:45]} 12. Qb3 {[%clk 0:02:28]}  Qb4 {[%clk 0:02:41]} 13. Ne5 {[%clk 0:02:18]}  Nc6 {[%clk 0:02:25]} 14. Nxd7 {[%clk 0:02:17]}  Nxd7 {[%clk 0:02:26]} 15. Rfd1 {[%clk 0:02:05]}  Rfd8 {[%clk 0:02:25]} 16. Qxb4 {[%clk 0:02:01]}  Bxb4 {[%clk 0:02:22]} 17. Ne4 {[%clk 0:01:57]}  Nde5 {[%clk 0:02:03]} 18. a3 {[%clk 0:01:51]}  Be7 {[%clk 0:02:02]} 19. b4 {[%clk 0:01:50]}  b6 {[%clk 0:01:57]} 20. c5 {[%clk 0:01:45]}  bxc5 {[%clk 0:01:54]} 21. Nxc5 {[%clk 0:01:45]}  Rac8 {[%clk 0:01:47]} 22. Nb7 {[%clk 0:01:26]}  Rxd1+ {[%clk 0:01:38]} 23. Rxd1 {[%clk 0:01:27]}  Rc7 {[%clk 0:01:36]} 24. Nc5 {[%clk 0:01:25]}  h6 {[%clk 0:01:25]} 25. f4 {[%clk 0:01:15]}  Ng6 {[%clk 0:01:19]} 26. Na6 {[%clk 0:01:06]}  Rc8 {[%clk 0:01:18]} 27. b5 {[%clk 0:00:57]}  Na5 {[%clk 0:00:57]} 28. g3 {[%clk 0:00:57]}  Bxa3 {[%clk 0:00:52]} 29. Bxa7 {[%clk 0:00:55]}  Ne7 {[%clk 0:00:52]} 30. Ra1 {[%clk 0:00:42]}  Rc1+ {[%clk 0:00:52]} 31. Rxc1 {[%clk 0:00:42]}  Bxc1 {[%clk 0:00:53]} 32. Bf3 {[%clk 0:00:39]}  Nd5 {[%clk 0:00:53]} 33. Bd4 {[%clk 0:00:32]}  f6 {[%clk 0:00:45]} 34. b6 {[%clk 0:00:27]}  Ba3 {[%clk 0:00:41]} 35. Bxd5 {[%clk 0:00:24]}  exd5 {[%clk 0:00:41]} 36. Bc5 {[%clk 0:00:24]}  Bxc5+ {[%clk 0:00:31]} 37. Nxc5 {[%clk 0:00:24]}  Kf7 {[%clk 0:00:30]} 38. b7 {[%clk 0:00:24]}  Nc6 {[%clk 0:00:31]} 39. Na6 {[%clk 0:00:24]}  Ke6 {[%clk 0:00:27]} 40. Kf2 {[%clk 0:00:23]}  g5 {[%clk 0:00:26]} 41. b8=Q {[%clk 0:00:20]}  Nxb8 {[%clk 0:00:26]} 42. Nxb8 {[%clk 0:00:21]}  Kf5 {[%clk 0:00:27]} 43. Kf3 {[%clk 0:00:20]}  h5 {[%clk 0:00:27]} 44. Nc6 {[%clk 0:00:19]}  g4+ {[%clk 0:00:26]} 45. Ke3 {[%clk 0:00:19]}  h4 {[%clk 0:00:26]} 46. Nd4+ {[%clk 0:00:19]}  Kg6 {[%clk 0:00:26]} 47. Kd3 {[%clk 0:00:19]}  hxg3 {[%clk 0:00:24]} 48. hxg3 {[%clk 0:00:19]}  Kf7 {[%clk 0:00:25]} 49. Kc3 {[%clk 0:00:19]}  Ke7 {[%clk 0:00:25]} 50. Kb4 {[%clk 0:00:19]}  Kd6 {[%clk 0:00:26]} 51. Kb5 {[%clk 0:00:20]}  Ke7 {[%clk 0:00:23]} 52. Kc5 {[%clk 0:00:19]} 1-0


[Site "https://www.chess.com"]

[Event "Titled Tuesday Blitz January 18 2022"]
[White "Shyaamnikhil P"]
[Black "Gabdushev, Ruslan"]
[WhiteFideId "5024218"]
[BlackFideId "4137833"]
[WhiteElo "2292"]
[BlackElo "2312"]
[Result "1/2-1/2"]
[Round "02"]
[TimeControl "180+1"]
[Date "2022.01.18"]
[WhiteClock "0:00:18"]
[BlackClock "0:00:06"]

1. Nf3 {[%clk 0:03:00]}  Nc6 {[%clk 0:02:58]} 2. g3 {[%clk 0:02:55]}  e5 {[%clk 0:02:55]} 3. d3 {[%clk 0:02:55]}  Bc5 {[%clk 0:02:53]} 4. Bg2 {[%clk 0:02:55]}  d6 {[%clk 0:02:53]} 5. O-O {[%clk 0:02:55]}  Nf6 {[%clk 0:02:48]} 6. c3 {[%clk 0:02:50]}  a5 {[%clk 0:02:46]} 7. a4 {[%clk 0:02:46]}  O-O {[%clk 0:02:45]} 8. Nbd2 {[%clk 0:02:43]}  Re8 {[%clk 0:02:36]} 9. Qc2 {[%clk 0:02:39]}  d5 {[%clk 0:02:24]} 10. e4 {[%clk 0:02:33]}  dxe4 {[%clk 0:02:16]} 11. Nxe4 {[%clk 0:02:31]}  Nxe4 {[%clk 0:02:15]} 12. dxe4 {[%clk 0:02:31]}  f6 {[%clk 0:01:58]} 13. Be3 {[%clk 0:02:29]}  Qe7 {[%clk 0:01:55]} 14. Nh4 {[%clk 0:02:24]}  Bxe3 {[%clk 0:01:45]} 15. fxe3 {[%clk 0:02:25]}  Qc5 {[%clk 0:01:44]} 16. Qe2 {[%clk 0:02:24]}  Be6 {[%clk 0:01:42]} 17. Nf5 {[%clk 0:02:23]}  Bc4 {[%clk 0:01:30]} 18. Qg4 {[%clk 0:02:22]}  g6 {[%clk 0:01:29]} 19. Rf2 {[%clk 0:01:40]}  Kh8 {[%clk 0:01:21]} 20. Qh4 {[%clk 0:01:19]}  Rf8 {[%clk 0:01:03]} 21. Nh6 {[%clk 0:01:19]}  Qxe3 {[%clk 0:00:58]} 22. Ng4 {[%clk 0:01:17]}  Qg5 {[%clk 0:00:43]} 23. Nxf6 {[%clk 0:00:59]}  Qxh4 {[%clk 0:00:42]} 24. gxh4 {[%clk 0:00:59]}  Kg7 {[%clk 0:00:38]} 25. Nd5 {[%clk 0:00:59]}  Rxf2 {[%clk 0:00:09]} 26. Kxf2 {[%clk 0:01:00]}  Rf8+ {[%clk 0:00:09]} 27. Ke3 {[%clk 0:00:59]}  Rf7 {[%clk 0:00:09]} 28. Bh3 {[%clk 0:00:44]}  Bxd5 {[%clk 0:00:07]} 29. exd5 {[%clk 0:00:44]}  Ne7 {[%clk 0:00:08]} 30. Ke4 {[%clk 0:00:41]}  Rf4+ {[%clk 0:00:06]} 31. Kxe5 {[%clk 0:00:41]}  Rxh4 {[%clk 0:00:06]} 32. Be6 {[%clk 0:00:37]}  Rh5+ {[%clk 0:00:06]} 33. Kd4 {[%clk 0:00:36]}  Nf5+ {[%clk 0:00:05]} 34. Bxf5 {[%clk 0:00:30]}  Rxf5 {[%clk 0:00:05]} 35. Re1 {[%clk 0:00:29]}  Kf7 {[%clk 0:00:06]} 36. Re2 {[%clk 0:00:28]}  Rf4+ {[%clk 0:00:05]} 37. Kc5 {[%clk 0:00:27]}  Rxa4 {[%clk 0:00:06]} 38. Rf2+ {[%clk 0:00:17]}  Ke7 {[%clk 0:00:06]} 39. Re2+ {[%clk 0:00:17]}  Kf7 {[%clk 0:00:06]} 40. Rf2+ {[%clk 0:00:17]}  Ke7 {[%clk 0:00:06]} 41. Re2+ {[%clk 0:00:18]}  Kf7 {[%clk 0:00:06]} 1/2-1/2


[Site "https://www.chess.com"]

[Event "Titled Tuesday Blitz January 18 2022"]
[White "Sokolovsky, Yahli"]
[Black "Leiva, Gianmarco"]
[WhiteFideId "2820242"]
[BlackFideId "3804399"]
[WhiteElo "1770"]
[BlackElo "2328"]
[Result "1-0"]
[Round "02"]
[TimeControl "180+1"]
[Date "2022.01.18"]
[WhiteClock "0:00:11"]
[BlackClock "0:00:06"]

1. b3 {[%clk 0:03:00]}  e5 {[%clk 0:02:58]} 2. Bb2 {[%clk 0:03:01]}  Nc6 {[%clk 0:02:59]} 3. e3 {[%clk 0:03:01]}  a6 {[%clk 0:02:59]} 4. Nf3 {[%clk 0:02:59]}  e4 {[%clk 0:02:59]} 5. Nd4 {[%clk 0:03:00]}  Nge7 {[%clk 0:02:59]} 6. c4 {[%clk 0:02:59]}  Nxd4 {[%clk 0:02:58]} 7. Bxd4 {[%clk 0:02:59]}  Nc6 {[%clk 0:02:55]} 8. Bb2 {[%clk 0:02:59]}  Qg5 {[%clk 0:02:51]} 9. Nc3 {[%clk 0:02:56]}  f5 {[%clk 0:02:37]} 10. d4 {[%clk 0:02:49]}  Nd8 {[%clk 0:02:12]} 11. Nd5 {[%clk 0:02:33]}  Ne6 {[%clk 0:02:07]} 12. f4 {[%clk 0:02:00]}  exf3 {[%clk 0:01:43]} 13. Qxf3 {[%clk 0:02:00]}  c6 {[%clk 0:01:43]} 14. Nc3 {[%clk 0:01:36]}  b5 {[%clk 0:01:39]} 15. O-O-O {[%clk 0:01:32]}  bxc4 {[%clk 0:01:38]} 16. Bxc4 {[%clk 0:01:28]}  d5 {[%clk 0:01:38]} 17. Nxd5 {[%clk 0:01:11]}  cxd5 {[%clk 0:01:29]} 18. Qxd5 {[%clk 0:00:57]}  Ra7 {[%clk 0:01:12]} 19. Qc6+ {[%clk 0:00:52]}  Bd7 {[%clk 0:01:10]} 20. Qb6 {[%clk 0:00:52]}  Qxe3+ {[%clk 0:01:07]} 21. Kb1 {[%clk 0:00:51]}  Qe4+ {[%clk 0:01:07]} 22. Ka1 {[%clk 0:00:40]}  Qb7 {[%clk 0:00:55]} 23. Qa5 {[%clk 0:00:35]}  g6 {[%clk 0:00:51]} 24. Rhe1 {[%clk 0:00:30]}  Kf7 {[%clk 0:00:38]} 25. Rxe6 {[%clk 0:00:29]}  Bxe6 {[%clk 0:00:33]} 26. Bxe6+ {[%clk 0:00:29]}  Kxe6 {[%clk 0:00:31]} 27. d5+ {[%clk 0:00:21]}  Kf7 {[%clk 0:00:19]} 28. Bxh8 {[%clk 0:00:21]}  Kg8 {[%clk 0:00:20]} 29. Bb2 {[%clk 0:00:19]}  Qb5 {[%clk 0:00:10]} 30. Qc3 {[%clk 0:00:15]}  Bg7 {[%clk 0:00:07]} 31. Qc8+ {[%clk 0:00:16]}  Kf7 {[%clk 0:00:08]} 32. Qe6+ {[%clk 0:00:13]}  Kf8 {[%clk 0:00:08]} 33. d6 {[%clk 0:00:10]}  Bxb2+ {[%clk 0:00:07]} 34. Kxb2 {[%clk 0:00:11]}  Rd7 {[%clk 0:00:07]} 35. Rc1 {[%clk 0:00:10]}  Kg7 {[%clk 0:00:06]} 36. Rc7 {[%clk 0:00:07]}  Rxc7 {[%clk 0:00:06]} 37. dxc7 {[%clk 0:00:08]}  Qc5 {[%clk 0:00:06]} 38. Qc4 {[%clk 0:00:08]}  Qf2+ {[%clk 0:00:05]} 39. Qc2 {[%clk 0:00:09]}  Qd4+ {[%clk 0:00:05]} 40. Qc3 {[%clk 0:00:09]}  Qxc3+ {[%clk 0:00:05]} 41. Kxc3 {[%clk 0:00:10]}  f4 {[%clk 0:00:05]} 42. c8=Q {[%clk 0:00:11]}  f3 {[%clk 0:00:06]} 43. gxf3 {[%clk 0:00:11]} 1-0


[Site "https://www.chess.com"]

[Event "Titled Tuesday Blitz January 18 2022"]
[White "Steel, Henry Robert"]
[Black "Piorun, Kacper"]
[WhiteFideId "14300567"]
[BlackFideId "1130420"]
[WhiteElo "2620"]
[BlackElo "2969"]
[Result "0-1"]
[Round "02"]
[TimeControl "180+1"]
[Date "2022.01.18"]
[WhiteClock "0:00:01"]
[BlackClock "0:00:29"]

1. e4 {[%clk 0:03:00]}  e6 {[%clk 0:03:00]} 2. d4 {[%clk 0:02:56]}  d5 {[%clk 0:03:00]} 3. Nc3 {[%clk 0:02:51]}  Bb4 {[%clk 0:03:00]} 4. e5 {[%clk 0:02:50]}  Qd7 {[%clk 0:03:01]} 5. a3 {[%clk 0:02:43]}  Bxc3+ {[%clk 0:03:01]} 6. bxc3 {[%clk 0:02:44]}  b6 {[%clk 0:03:01]} 7. Qg4 {[%clk 0:02:44]}  f5 {[%clk 0:03:01]} 8. exf6 {[%clk 0:02:42]}  Nxf6 {[%clk 0:03:01]} 9. Qh3 {[%clk 0:02:39]}  Ba6 {[%clk 0:03:00]} 10. Bd3 {[%clk 0:02:37]}  Bxd3 {[%clk 0:02:55]} 11. cxd3 {[%clk 0:02:37]}  Nc6 {[%clk 0:02:55]} 12. Nf3 {[%clk 0:02:37]}  O-O-O {[%clk 0:02:42]} 13. O-O {[%clk 0:02:36]}  h6 {[%clk 0:02:42]} 14. Bf4 {[%clk 0:02:33]}  Rdf8 {[%clk 0:02:33]} 15. Ne5 {[%clk 0:02:25]}  Nxe5 {[%clk 0:02:27]} 16. Bxe5 {[%clk 0:02:21]}  Kb7 {[%clk 0:02:26]} 17. c4 {[%clk 0:02:20]}  h5 {[%clk 0:02:16]} 18. Rfc1 {[%clk 0:02:10]}  Ng4 {[%clk 0:02:10]} 19. Bg3 {[%clk 0:01:23]}  dxc4 {[%clk 0:02:08]} 20. Rxc4 {[%clk 0:01:24]}  c6 {[%clk 0:01:59]} 21. Rac1 {[%clk 0:01:20]}  Rc8 {[%clk 0:01:58]} 22. Be5 {[%clk 0:01:11]}  Qf7 {[%clk 0:01:28]} 23. Qg3 {[%clk 0:01:04]}  Rhf8 {[%clk 0:01:22]} 24. h3 {[%clk 0:00:49]}  Qxf2+ {[%clk 0:00:56]} 25. Qxf2 {[%clk 0:00:44]}  Nxf2 {[%clk 0:00:56]} 26. R4c3 {[%clk 0:00:35]}  Rf5 {[%clk 0:00:55]} 27. Bxg7 {[%clk 0:00:29]}  Nxh3+ {[%clk 0:00:45]} 28. gxh3 {[%clk 0:00:14]}  Rg5+ {[%clk 0:00:39]} 29. Kf2 {[%clk 0:00:13]}  Rxg7 {[%clk 0:00:38]} 30. Re1 {[%clk 0:00:11]}  Rf8+ {[%clk 0:00:38]} 31. Ke2 {[%clk 0:00:12]}  Rg3 {[%clk 0:00:37]} 32. h4 {[%clk 0:00:10]}  Rf4 {[%clk 0:00:34]} 33. Kd2 {[%clk 0:00:07]}  Rg2+ {[%clk 0:00:34]} 34. Kd1 {[%clk 0:00:07]}  Rxh4 {[%clk 0:00:33]} 35. Rxe6 {[%clk 0:00:06]}  Rh1+ {[%clk 0:00:34]} 36. Re1 {[%clk 0:00:07]}  Rxe1+ {[%clk 0:00:34]} 37. Kxe1 {[%clk 0:00:08]}  h4 {[%clk 0:00:34]} 38. Kf1 {[%clk 0:00:04]}  h3 {[%clk 0:00:34]} 39. Rc4 {[%clk 0:00:04]}  Ra2 {[%clk 0:00:32]} 40. d5 {[%clk 0:00:03]}  cxd5 {[%clk 0:00:32]} 41. Rh4 {[%clk 0:00:03]}  h2 {[%clk 0:00:32]} 42. a4 {[%clk 0:00:01]}  Rxa4 {[%clk 0:00:29]} 0-1


[Site "https://www.chess.com"]

[Event "Titled Tuesday Blitz January 18 2022"]
[White "Stoleriu, George"]
[Black "Swicarz, Maciej"]
[WhiteFideId "1227505"]
[BlackFideId "1113585"]
[WhiteElo "2203"]
[BlackElo "2063"]
[Result "0-1"]
[Round "02"]
[TimeControl "180+1"]
[Date "2022.01.18"]
[WhiteClock "0:00:11"]
[BlackClock "0:00:12"]

1. e4 {[%clk 0:03:00]}  c5 {[%clk 0:02:59]} 2. Nf3 {[%clk 0:03:00]}  d6 {[%clk 0:02:59]} 3. Bb5+ {[%clk 0:03:01]}  Nd7 {[%clk 0:02:58]} 4. d4 {[%clk 0:03:00]}  cxd4 {[%clk 0:02:56]} 5. Qxd4 {[%clk 0:03:01]}  a6 {[%clk 0:02:56]} 6. Bxd7+ {[%clk 0:02:58]}  Bxd7 {[%clk 0:02:55]} 7. c4 {[%clk 0:02:59]}  Qc7 {[%clk 0:02:49]} 8. O-O {[%clk 0:02:52]}  Rc8 {[%clk 0:02:47]} 9. Nbd2 {[%clk 0:02:48]}  Qc5 {[%clk 0:02:44]} 10. b3 {[%clk 0:02:37]}  Qxd4 {[%clk 0:02:35]} 11. Nxd4 {[%clk 0:02:38]}  g6 {[%clk 0:02:36]} 12. Bb2 {[%clk 0:02:35]}  Bg7 {[%clk 0:02:35]} 13. Rac1 {[%clk 0:02:30]}  Nh6 {[%clk 0:02:28]} 14. h3 {[%clk 0:02:24]}  O-O {[%clk 0:02:26]} 15. Rfe1 {[%clk 0:02:11]}  Rfe8 {[%clk 0:02:21]} 16. f4 {[%clk 0:02:02]}  f5 {[%clk 0:02:15]} 17. e5 {[%clk 0:02:01]}  dxe5 {[%clk 0:02:14]} 18. fxe5 {[%clk 0:02:02]}  Bc6 {[%clk 0:02:10]} 19. Ne6 {[%clk 0:01:54]}  Bh8 {[%clk 0:02:10]} 20. Rcd1 {[%clk 0:01:45]}  Nf7 {[%clk 0:02:10]} 21. Nf3 {[%clk 0:01:44]}  Nd8 {[%clk 0:02:01]} 22. Nfd4 {[%clk 0:01:34]}  Bd7 {[%clk 0:01:57]} 23. Nf4 {[%clk 0:01:11]}  Bc6 {[%clk 0:01:47]} 24. Nde6 {[%clk 0:01:07]}  Nxe6 {[%clk 0:01:41]} 25. Nxe6 {[%clk 0:01:08]}  Kf7 {[%clk 0:01:41]} 26. Ng5+ {[%clk 0:01:04]}  Kg8 {[%clk 0:01:41]} 27. Rd2 {[%clk 0:00:55]}  h6 {[%clk 0:01:37]} 28. Ne6 {[%clk 0:00:44]}  Kf7 {[%clk 0:01:36]} 29. Nf4 {[%clk 0:00:43]}  e6 {[%clk 0:01:29]} 30. Red1 {[%clk 0:00:42]}  g5 {[%clk 0:01:29]} 31. Ne2 {[%clk 0:00:40]}  Rc7 {[%clk 0:01:22]} 32. Nd4 {[%clk 0:00:33]}  Bxe5 {[%clk 0:01:13]} 33. Nxc6 {[%clk 0:00:23]}  Bxb2 {[%clk 0:01:12]} 34. Nd8+ {[%clk 0:00:21]}  Ke7 {[%clk 0:01:09]} 35. Nxe6 {[%clk 0:00:20]}  Kxe6 {[%clk 0:01:07]} 36. Rxb2 {[%clk 0:00:21]}  Ree7 {[%clk 0:01:03]} 37. Re2+ {[%clk 0:00:20]}  Kf7 {[%clk 0:01:03]} 38. Rxe7+ {[%clk 0:00:20]}  Rxe7 {[%clk 0:01:03]} 39. Kf2 {[%clk 0:00:21]}  Ke6 {[%clk 0:01:02]} 40. Re1+ {[%clk 0:00:22]}  Kd6 {[%clk 0:01:02]} 41. Rd1+ {[%clk 0:00:21]}  Kc6 {[%clk 0:01:02]} 42. Rd5 {[%clk 0:00:22]}  f4 {[%clk 0:01:01]} 43. h4 {[%clk 0:00:22]}  gxh4 {[%clk 0:00:34]} 44. Rh5 {[%clk 0:00:21]}  Re6 {[%clk 0:00:34]} 45. Rxh4 {[%clk 0:00:20]}  Kc5 {[%clk 0:00:34]} 46. Rxf4 {[%clk 0:00:20]}  Kb4 {[%clk 0:00:35]} 47. Rf7 {[%clk 0:00:16]}  b6 {[%clk 0:00:35]} 48. Rd7 {[%clk 0:00:13]}  Ka3 {[%clk 0:00:34]} 49. Rd2 {[%clk 0:00:13]}  a5 {[%clk 0:00:33]} 50. Kg3 {[%clk 0:00:12]}  a4 {[%clk 0:00:31]} 51. bxa4 {[%clk 0:00:11]}  Kxa4 {[%clk 0:00:32]} 52. Rb2 {[%clk 0:00:12]}  Ka3 {[%clk 0:00:32]} 53. Rb5 {[%clk 0:00:11]}  Kxa2 {[%clk 0:00:31]} 54. Kh4 {[%clk 0:00:11]}  Rg6 {[%clk 0:00:31]} 55. g4 {[%clk 0:00:11]}  Rc6 {[%clk 0:00:30]} 56. Kh5 {[%clk 0:00:11]}  Ka3 {[%clk 0:00:28]} 57. Rb1 {[%clk 0:00:10]}  Ka4 {[%clk 0:00:27]} 58. Rb5 {[%clk 0:00:09]}  Ka3 {[%clk 0:00:23]} 59. Rb1 {[%clk 0:00:08]}  Ka4 {[%clk 0:00:23]} 60. Kh4 {[%clk 0:00:07]}  Ka5 {[%clk 0:00:22]} 61. Rb5+ {[%clk 0:00:07]}  Ka4 {[%clk 0:00:22]} 62. Kg3 {[%clk 0:00:05]}  Rf6 {[%clk 0:00:19]} 63. Rf5 {[%clk 0:00:04]}  Rc6 {[%clk 0:00:18]} 64. Rb5 {[%clk 0:00:05]}  Rf6 {[%clk 0:00:17]} 65. Kh3 {[%clk 0:00:04]}  Rc6 {[%clk 0:00:16]} 66. Kh4 {[%clk 0:00:05]}  Ka3 {[%clk 0:00:15]} 67. Kh5 {[%clk 0:00:04]}  Ka4 {[%clk 0:00:14]} 68. Rb1 {[%clk 0:00:04]}  Ka5 {[%clk 0:00:14]} 69. Rb2 {[%clk 0:00:03]}  Rxc4 {[%clk 0:00:12]} 70. Ra2+ {[%clk 0:00:03]}  Kb5 {[%clk 0:00:12]} 71. Rb2+ {[%clk 0:00:04]}  Ka6 {[%clk 0:00:12]} 72. Ra2+ {[%clk 0:00:04]}  Kb7 {[%clk 0:00:12]} 73. Rf2 {[%clk 0:00:04]}  Rc6 {[%clk 0:00:12]} 74. Rf7+ {[%clk 0:00:05]}  Ka6 {[%clk 0:00:12]} 75. Rg7 {[%clk 0:00:02]}  b5 {[%clk 0:00:12]} 76. Rg6 {[%clk 0:00:02]}  Rxg6 {[%clk 0:00:12]} 77. Kxg6 {[%clk 0:00:03]}  b4 {[%clk 0:00:13]} 78. Kxh6 {[%clk 0:00:04]}  b3 {[%clk 0:00:13]} 79. g5 {[%clk 0:00:05]}  b2 {[%clk 0:00:14]} 80. g6 {[%clk 0:00:06]}  b1=Q {[%clk 0:00:14]} 81. g7 {[%clk 0:00:07]}  Qb3 {[%clk 0:00:13]} 82. Kh7 {[%clk 0:00:07]}  Qh3+ {[%clk 0:00:13]} 83. Kg6 {[%clk 0:00:07]}  Qg4+ {[%clk 0:00:13]} 84. Kh6 {[%clk 0:00:08]}  Kb6 {[%clk 0:00:13]} 85. Kh7 {[%clk 0:00:08]}  Qh5+ {[%clk 0:00:13]} 86. Kg8 {[%clk 0:00:09]}  Kc6 {[%clk 0:00:14]} 87. Kf8 {[%clk 0:00:09]}  Qf5+ {[%clk 0:00:14]} 88. Ke7 {[%clk 0:00:10]}  Qg6 {[%clk 0:00:14]} 89. Kf8 {[%clk 0:00:10]}  Qf6+ {[%clk 0:00:14]} 90. Kg8 {[%clk 0:00:11]}  Kd6 {[%clk 0:00:14]} 91. Kh7 {[%clk 0:00:12]}  Qf5+ {[%clk 0:00:14]} 92. Kh6 {[%clk 0:00:12]}  Qh3+ {[%clk 0:00:13]} 93. Kg6 {[%clk 0:00:13]}  Qg4+ {[%clk 0:00:13]} 94. Kf7 {[%clk 0:00:13]}  Qe6+ {[%clk 0:00:12]} 95. Kf8 {[%clk 0:00:13]}  Qf6+ {[%clk 0:00:12]} 96. Kg8 {[%clk 0:00:12]}  Ke6 {[%clk 0:00:12]} 97. Kh7 {[%clk 0:00:11]}  Qh4+ {[%clk 0:00:12]} 98. Kg6 {[%clk 0:00:11]}  Qg4+ {[%clk 0:00:12]} 99. Kh7 {[%clk 0:00:11]}  Kf7 {[%clk 0:00:12]} 0-1


[Site "https://www.chess.com"]